{"text_format":"1","workbook":"xlsx","n_sheets":4,"sheets":["ご案内","別紙２（単体用）","別紙２（代理人用）","別紙２（ＪＶ用）"],"not_rendered":{"charts":0,"images":0,"macros":1,"external_links":0,"defined_names":4,"comments":3,"pivot_tables":0},"unopened":[],"bounds":{"document_bytes":16777216,"sheet_cells":100000,"rows_first":2000,"rows_last":500,"rows_between":2000,"halvings":0,"cell_chars":16384,"cell_head_chars":4096},"cells_cut":0,"cells_raw":0,"read":"whole","date_system":"1900"}

{"sheet":"ご案内","index":0,"n_rows":14,"n_cols":1,"rows_kept":14,"cut":false,"hidden":false,"merged":[]}
[]
["当初契約を「電子契約」で行い、"]
[]
["変更契約から「紙契約」を希望する場合、"]
[]
["別シートにより別紙２（変更契約）を作成し、"]
[]
["予算係担当者へ直接提出してください。"]
[]
["なお、メールで提出される場合は、"]
[]
["行き違い等の防止のため、お手数ですが、"]
[]
["その旨、電話連絡をお願いいたします。"]

{"sheet":"別紙２（単体用）","index":1,"n_rows":29,"n_cols":43,"rows_kept":29,"cut":false,"hidden":false,"merged":[[28,8,28,23],[19,14,19,17],[19,19,19,21],[16,0,20,1],[17,2,19,4],[17,5,17,8],[17,9,17,23],[18,5,18,8],[18,9,18,13],[18,15,18,23],[19,5,19,8],[19,9,19,12],[26,7,26,23],[27,7,27,23],[10,28,11,32],[10,1,10,6],[10,7,10,24],[13,1,13,3],[13,6,13,8],[15,38,16,44],[20,38,21,47],[0,0,0,24],[8,7,8,12],[8,13,8,17],[8,19,8,23],[0,35,0,37],[6,27,7,28],[6,7,6,12],[6,13,6,23],[7,7,7,12],[7,13,7,23],[14,1,14,3],[14,6,14,23],[10,26,11,27]]}
["変更契約に関する申出書"]
[null,null,null,null,null,null,null,null,null,null,null,null,null,null,null,null,null,null,null,null,null,null,null,null,null,null,"◎申出書内の黄色セル及び"]
[null,null,null,null,null,null,null,null,null,null,null,null,null,null,null,null,null,{"$f":"IF($AB$7=\"\",\"\",\"令和\")","v":"令和"},null,"年",null,"月",null,"日",null,null,"　申出書外の赤枠セルに必要事項を入力してください"]
[]
[null,"空知総合振興局長　様",null,null,null,null,null,null,null,null,null,null,null,null,null,null,null,null,null,null,null,null,null,null,null,null,null,"該当する区分を選択"]
[null,null,null,null,null,null,null,null,null,null,null,null,null,null,null,null,null,null,null,null,null,null,null,null,null,null,null,"↓",null,"契約区分",null,null,null,null,null,null,null,null,null,"＜ファイル名用＞"]
[null,null,null,null,null,null,null,"住所",null,null,null,null,null,null,null,null,null,null,null,null,null,null,null,null,null,null,null,1,null,1,"工事",null,null,null,null,null,null,null,null,null,null,"発注機関","札幌建管"]
[null,null,null,null,null,null,null,"商号又は名称",null,null,null,null,null,null,null,null,null,null,null,null,null,null,null,null,null,null,null,null,null,2,"委託業務",null,null,null,null,null,null,null,null,null,null,"当初契約日",{"$f":"MONTH(AC11)&\"月\"&DAY(AC11)&\"日\"","v":"1月0日"}]
[null,null,null,null,null,null,null,"代表者役職・氏名",null,null,null,null,null,null,null,null,null,null,null,null,null,null,null,null,null,null,null,null,null,null,null,null,null,null,null,null,null,null,null,null,null,{"$f":"B14","v":"工事番号"},"=G14"]
[null,null,null,null,null,null,null,null,null,null,null,null,null,null,null,null,null,null,null,null,null,null,null,null,null,"はじめに入力↓",null,null,null,null,null,null,null,null,null,null,null,null,null,null,null,{"$f":"IF(AB7=1,\"受注者\",\"受託者\")","v":"受注者"},{"$f":"N8","v":0}]
[null,{"$f":"AC11","v":"00:00:00"},null,null,null,null,null,{"$f":"\"に契約締結した次の\"&IF(AB7=1,AE7,AE8)&\"について、\"&\"第\"&AE14&\"回変更契約から\"","v":"に契約締結した次の工事について、第１回変更契約から"},null,null,null,null,null,null,null,null,null,null,null,null,null,null,null,null,null,null,"当初\n契約日",null,null,null,null,null,null,null,null,null,null,null,null,null,null,"タイトル","変更契約に関する申出書"]
["紙での契約を希望するので、申し出ます。"]
[]
["（",{"$f":"IF(AB7=1,\"工事番号\",\"業務番号\")","v":"工事番号"},null,null,"）","（",null,null,null,"）",null,null,null,null,null,null,null,null,null,null,null,null,null,null,null,null,"設計変更回数",null,null,null,"１","←最後に入力"]
[null,{"$f":"IF(AB7=1,\"工事名\",\"業務名\")","v":"工事名"}]
[null,null,null,null,null,null,null,null,null,null,null,null,null,null,null,null,null,null,null,null,null,null,null,null,null,null,null,null,null,null,null,null,null,null,null,null,null,null,"全ての入力内容を確認後、ＰＤＦに変換のうえ、"]
["連絡先"]
[null,null,"担当者",null,null,"（所属）",null,null,null,null,null,null,null,null,null,null,null,null,null,null,null,null,null,null,null,null,null,null,null,null,null,null,null,null,null,null,null,null,"入札契約課へ送付してください。"]
[null,null,null,null,null,"（職・氏名）",null,null,null,null,null,null,null,null,"・",null,null,null,null,null,null,null,null,null,null,"当初契約時と連絡先が違う場合も想定されるので",null,null,null,null,null,null,null,null,null,null,null,null,"なお、←のＰＤＦ化をクリックすると、"]
[null,null,null,null,null,"（電話番号）",null,null,null,null,null,null,null,"－",null,null,null,null,"－",null,null,null,null,null,null,"お手数ですが、ご入力ください",null,null,null,null,null,null,null,null,null,null,null,null,"このエクセルシートが保存されている場所と同じ場所に"]
[null,null,null,null,null,null,null,null,null,null,null,null,null,null,null,null,null,null,null,null,null,null,null,null,null,null,null,null,null,null,null,null,null,null,null,null,null,null,{"$f":"\"「発注機関名_当初契約日_\"&B14&\"_契約者名_変更契約に係る申出書」\"","v":"「発注機関名_当初契約日_工事番号_契約者名_変更契約に係る申出書」"}]
[]
[null,"（留意事項）",null,null,null,null,null,null,null,null,null,null,null,null,null,null,null,null,null,null,null,null,null,null,null,null,null,null,null,null,null,null,null,null,null,null,null,null,"をファイル名としたこの様式が、ＰＤＦで保存されます。"]
[null,null,"※",{"$f":"\"この申出書は、\"&IF(AB7=1,\"工事監督員\",\"業務担当員\")&\"に変更契約に係る設計変更上申日を確認した上で、\"","v":"この申出書は、工事監督員に変更契約に係る設計変更上申日を確認した上で、"},null,null,null,null,null,null,null,null,null,null,null,null,null,null,null,null,null,null,null,null,null,null,null,null,null,null,null,null,null,null,null,null,null,null,"（ＰＤＦの保存範囲は、Ａ～Ｙ列までです。）"]
[null,null,null,"各発注機関へ直接、提出してください。"]
[]
[null,null,null,"提 出 先",null,null,null,"札幌建管入札契約課予算係"]
[null,null,null,"電　　話",null,null,null,"011-561-0426"]
[null,null,null,"メールアドレス",null,null,null,null,"satsudoboku.koji1@pref.hokkaido.lg.jp"]

{"sheet":"別紙２（代理人用）","index":2,"n_rows":31,"n_cols":43,"rows_kept":31,"cut":false,"hidden":false,"merged":[[21,14,21,17],[21,19,21,21],[22,38,23,47],[28,7,28,23],[29,7,29,23],[30,8,30,23],[17,38,18,44],[18,0,22,1],[19,2,21,4],[19,5,19,8],[19,9,19,23],[20,5,20,8],[20,9,20,13],[20,15,20,23],[21,5,21,8],[21,9,21,12],[12,26,13,27],[12,28,13,32],[15,1,15,3],[15,6,15,8],[16,1,16,3],[16,6,16,23],[7,7,7,12],[7,13,7,23],[8,7,8,12],[8,13,8,17],[8,19,8,23],[12,1,12,6],[12,7,12,24],[9,13,9,23],[10,19,10,23],[0,0,0,24],[0,35,0,37],[6,27,7,28],[6,7,6,12],[6,13,6,23]]}
["変更契約に関する申出書"]
[null,null,null,null,null,null,null,null,null,null,null,null,null,null,null,null,null,null,null,null,null,null,null,null,null,null,"◎申出書内の黄色セル及び"]
[null,null,null,null,null,null,null,null,null,null,null,null,null,null,null,null,null,{"$f":"IF($AB$7=\"\",\"\",\"令和\")","v":"令和"},null,"年",null,"月",null,"日",null,null,"　申出書外の赤枠セルに必要事項を入力してください"]
[null,null,null,null,null,null,null,null,null,null,null,null,null,null,null,null,null,null,null,null,null,null,null,null,null,null,null,null,null,null,null,null,null,null,null,null,null,null,null,"＜ファイル名用＞"]
[null,"空知総合振興局長　様",null,null,null,null,null,null,null,null,null,null,null,null,null,null,null,null,null,null,null,null,null,null,null,null,null,"該当する区分を選択",null,null,null,null,null,null,null,null,null,null,null,null,null,"発注機関","札幌建管"]
[null,null,null,null,null,null,null,null,null,null,null,null,null,null,null,null,null,null,null,null,null,null,null,null,null,null,null,"↓",null,"契約区分",null,null,null,null,null,null,null,null,null,null,null,"当初契約日",{"$f":"MONTH(AC13)&\"月\"&DAY(AC13)&\"日\"","v":"1月0日"}]
[null,null,null,null,null,null,null,"住所",null,null,null,null,null,null,null,null,null,null,null,null,null,null,null,null,null,null,null,1,null,1,"工事",null,null,null,null,null,null,null,null,null,null,{"$f":"B16","v":"工事番号"},"=G16"]
[null,null,null,null,null,null,null,"商号又は名称",null,null,null,null,null,null,null,null,null,null,null,null,null,null,null,null,null,null,null,null,null,2,"委託業務",null,null,null,null,null,null,null,null,null,null,{"$f":"IF(AB7=1,\"受注者\",\"受託者\")","v":"受注者"},{"$f":"N8","v":0}]
[null,null,null,null,null,null,null,"代表者役職・氏名",null,null,null,null,null,null,null,null,null,null,null,null,null,null,null,null,null,null,null,null,null,null,null,null,null,null,null,null,null,null,null,null,null,"タイトル","変更契約に関する申出書"]
[null,null,null,null,null,null,"代理人","住所"]
[null,null,null,null,null,null,null,"氏名"]
[null,null,null,null,null,null,null,null,null,null,null,null,null,null,null,null,null,null,null,null,null,null,null,null,null,"はじめに入力↓"]
[null,{"$f":"AC13","v":"00:00:00"},null,null,null,null,null,{"$f":"\"に契約締結した次の\"&IF(AB7=1,AE7,AE8)&\"について、\"&\"第\"&AE16&\"回変更契約から\"","v":"に契約締結した次の工事について、第１回変更契約から"},null,null,null,null,null,null,null,null,null,null,null,null,null,null,null,null,null,null,"当初\n契約日"]
["紙での契約を希望するので、申し出ます。"]
[]
["（",{"$f":"IF(AB7=1,\"工事番号\",\"業務番号\")","v":"工事番号"},null,null,"）","（",null,null,null,"）",null,null,null,null,null,null,null,null,null,null,null,null,null,null,null,null,"設計変更回数",null,null,null,"１","←最後に入力"]
[null,{"$f":"IF(AB7=1,\"工事名\",\"業務名\")","v":"工事名"}]
[null,null,null,null,null,null,null,null,null,null,null,null,null,null,null,null,null,null,null,null,null,null,null,null,null,null,null,null,null,null,null,null,null,null,null,null,null,null,"全ての入力内容を確認後、ＰＤＦに変換のうえ、"]
["連絡先"]
[null,null,"担当者",null,null,"（所属）",null,null,null,null,null,null,null,null,null,null,null,null,null,null,null,null,null,null,null,null,null,null,null,null,null,null,null,null,null,null,null,null,"入札契約課へ送付してください。"]
[null,null,null,null,null,"（職・氏名）",null,null,null,null,null,null,null,null,"・",null,null,null,null,null,null,null,null,null,null,"当初契約時と連絡先が違う場合も想定されるので",null,null,null,null,null,null,null,null,null,null,null,null,"なお、←のＰＤＦ化をクリックすると、"]
[null,null,null,null,null,"（電話番号）",null,null,null,null,null,null,null,"－",null,null,null,null,"－",null,null,null,null,null,null,"お手数ですが、ご入力ください",null,null,null,null,null,null,null,null,null,null,null,null,"このエクセルシートが保存されている場所と同じ場所に"]
[null,null,null,null,null,null,null,null,null,null,null,null,null,null,null,null,null,null,null,null,null,null,null,null,null,null,null,null,null,null,null,null,null,null,null,null,null,null,{"$f":"\"「発注機関名_当初契約日_\"&B16&\"_契約者名_変更契約に係る申出書」\"","v":"「発注機関名_当初契約日_工事番号_契約者名_変更契約に係る申出書」"}]
[]
[null,"（留意事項）",null,null,null,null,null,null,null,null,null,null,null,null,null,null,null,null,null,null,null,null,null,null,null,null,null,null,null,null,null,null,null,null,null,null,null,null,"をファイル名としたこの様式が、ＰＤＦで保存されます。"]
[null,null,"※",{"$f":"\"この申出書は、\"&IF(AB7=1,\"工事監督員\",\"業務担当員\")&\"に変更契約に係る設計変更上申日を確認した上で、\"","v":"この申出書は、工事監督員に変更契約に係る設計変更上申日を確認した上で、"},null,null,null,null,null,null,null,null,null,null,null,null,null,null,null,null,null,null,null,null,null,null,null,null,null,null,null,null,null,null,null,null,null,null,"（ＰＤＦの保存範囲は、Ａ～Ｙ列までです。）"]
[null,null,null,"各発注機関へ直接、提出してください。"]
[]
[null,null,null,"提 出 先",null,null,null,"札幌建管入札契約課予算係"]
[null,null,null,"電　　話",null,null,null,"011-561-0426"]
[null,null,null,"メールアドレス",null,null,null,null,"satsudoboku.koji1@pref.hokkaido.lg.jp"]

{"sheet":"別紙２（ＪＶ用）","index":3,"n_rows":32,"n_cols":43,"rows_kept":32,"cut":false,"hidden":false,"merged":[[30,7,30,23],[31,8,31,23],[10,13,10,23],[11,19,11,23],[22,5,22,8],[22,9,22,12],[22,14,22,17],[22,19,22,21],[23,38,24,45],[29,7,29,23],[17,1,17,3],[17,6,17,23],[18,38,19,43],[19,0,23,1],[20,2,22,4],[20,5,20,8],[20,9,20,23],[21,5,21,8],[21,9,21,13],[21,15,21,23],[12,27,13,28],[12,29,13,33],[13,1,13,6],[13,7,13,24],[16,1,16,3],[16,6,16,8],[7,7,7,12],[7,13,7,23],[8,7,8,12],[8,13,8,23],[9,7,9,12],[9,13,9,17],[9,19,9,23],[0,0,0,24],[0,35,0,37],[6,27,7,28],[6,7,6,12],[6,13,6,23]]}
["変更契約に関する申出書"]
[null,null,null,null,null,null,null,null,null,null,null,null,null,null,null,null,null,null,null,null,null,null,null,null,null,null,"◎申出書内の黄色セル及び"]
[null,null,null,null,null,null,null,null,null,null,null,null,null,null,null,null,null,{"$f":"IF($AB$7=\"\",\"\",\"令和\")","v":"令和"},null,"年",null,"月",null,"日",null,null,"　申出書外の赤枠セルに必要事項を入力してください"]
[]
[null,"空知総合振興局長　様",null,null,null,null,null,null,null,null,null,null,null,null,null,null,null,null,null,null,null,null,null,null,null,null,null,"該当する区分を選択",null,null,null,null,null,null,null,null,null,null,null,"＜ファイル名用＞"]
[null,null,null,null,null,null,null,null,null,null,null,null,null,null,null,null,null,null,null,null,null,null,null,null,null,null,null,"↓",null,"契約区分",null,null,null,null,null,null,null,null,null,null,null,"発注機関","札幌建管"]
[null,null,null,null,null,null,null,"ＪＶ名",null,null,null,null,null,null,null,null,null,null,null,null,null,null,null,null,null,null,null,1,null,1,"工事",null,null,null,null,null,null,null,null,null,null,"当初契約日",{"$f":"MONTH(AD13)&\"月\"&DAY(AD13)&\"日\"","v":"1月0日"}]
[null,null,null,null,null,null,null,"住所",null,null,null,null,null,null,null,null,null,null,null,null,null,null,null,null,null,null,null,null,null,2,"委託業務",null,null,null,null,null,null,null,null,null,null,{"$f":"B17","v":"工事番号"},"=G17"]
[null,null,null,null,null,null,null,"商号又は名称",null,null,null,null,null,null,null,null,null,null,null,null,null,null,null,null,null,null,null,null,null,null,null,null,null,null,null,null,null,null,null,null,null,"ＪＶ名",{"$f":"N7","v":0}]
[null,null,null,null,null,null,null,"代表者役職・氏名",null,null,null,null,null,null,null,null,null,null,null,null,null,null,null,null,null,null,null,null,null,null,null,null,null,null,null,null,null,null,null,null,null,"タイトル","変更契約に関する申出書"]
[null,null,null,null,null,null,"代理人","住所"]
[null,null,null,null,null,null,null,"氏名",null,null,null,null,null,null,null,null,null,null,null,null,null,null,null,null,null,null,"はじめに入力↓"]
[null,null,null,null,null,null,null,null,null,null,null,null,null,null,null,null,null,null,null,null,null,null,null,null,null,null,null,"当初\n契約日"]
[null,{"$f":"AD13","v":"00:00:00"},null,null,null,null,null,{"$f":"\"に契約締結した次の\"&IF(AB7=1,AE7,AE8)&\"について、\"&\"第\"&AF18&\"回変更契約から\"","v":"に契約締結した次の工事について、第１回変更契約から"}]
["紙での契約を希望するので、申し出ます。"]
[]
["（",{"$f":"IF(AB7=1,\"工事番号\",\"業務番号\")","v":"工事番号"},null,null,"）","（",null,null,null,"）"]
[null,{"$f":"IF(AB7=1,\"工事名\",\"業務名\")","v":"工事名"},null,null,null,null,null,null,null,null,null,null,null,null,null,null,null,null,null,null,null,null,null,null,null,null,null,"設計変更回数",null,null,null,"１","←最後に入力",null,null,null,null,null,"全ての入力内容を確認後、ＰＤＦに変換のうえ、"]
[null,null,null,null,null,null,null,null,null,null,null,null,null,null,null,null,null,null,null,null,null,null,null,null,null,null,null,null,null,null,null,null,null,null,null,null,null,null,"入札契約課へ送付してください。"]
["連絡先"]
[null,null,"担当者",null,null,"（所属）",null,null,null,null,null,null,null,null,null,null,null,null,null,null,null,null,null,null,null,"当初契約時と連絡先が違う場合も想定されるので",null,null,null,null,null,null,null,null,null,null,null,null,"なお、←のＰＤＦ化をクリックすると、"]
[null,null,null,null,null,"（職・氏名）",null,null,null,null,null,null,null,null,"・",null,null,null,null,null,null,null,null,null,null,"お手数ですが、ご入力ください",null,null,null,null,null,null,null,null,null,null,null,null,"このエクセルシートが保存されている場所と同じ場所に"]
[null,null,null,null,null,"（電話番号）",null,null,null,null,null,null,null,"－",null,null,null,null,"－",null,null,null,null,null,null,null,null,null,null,null,null,null,null,null,null,null,null,null,{"$f":"\"「発注機関名_当初契約日_\"&B17&\"_契約者名_変更契約に係る申出書」\"","v":"「発注機関名_当初契約日_工事番号_契約者名_変更契約に係る申出書」"}]
[null,null,null,null,null,null,null,null,null,null,null,null,null,null,null,null,null,null,null,null,null,null,null,null,null,null,null,null,null,null,null,null,null,null,null,null,null,null,"をファイル名としたこの様式が、ＰＤＦで保存されます。"]
[]
[null,"（留意事項）",null,null,null,null,null,null,null,null,null,null,null,null,null,null,null,null,null,null,null,null,null,null,null,null,null,null,null,null,null,null,null,null,null,null,null,null,"（ＰＤＦの保存範囲は、Ａ～Ｙ列までです。）"]
[null,null,"※",{"$f":"\"この申出書は、\"&IF(AB7=1,\"工事監督員\",\"業務担当員\")&\"に変更契約に係る設計変更上申日を確認した上で、\"","v":"この申出書は、工事監督員に変更契約に係る設計変更上申日を確認した上で、"}]
[null,null,null,"各発注機関へ直接、提出してください。"]
[]
[null,null,null,"提 出 先",null,null,null,"札幌建管入札契約課予算係"]
[null,null,null,"電　　話",null,null,null,"011-561-0426"]
[null,null,null,"メールアドレス",null,null,null,null,"satsudoboku.koji1@pref.hokkaido.lg.jp"]